Workbook

Sheet интернат гимн
A1: Согласовано | O1: Утверждено
O2: ООО "КРЕПЫШ"
O3: _______________________Ефремов В.Ю.
A5: Меню для организации питания детей в возрасте с 7-10 лет, проживающих в интернате Мензелинского муниципального района на 2 полугодие 2023-2024 учебный год.
A7: 1 день, 1 неделя
A8: № рецептуры | B8: Прием пищи, наименование блюда | C8: Масса | D8: Пищевые вещества | G8: Энергетическая ценность | H8: Витамины | M8: Минеральные вещества
D9: Белки | E9: Жиры | F9: Углеводы | H9: B1 | I9: B2 | J9: A | K9: D | L9: C | M9: Na | N9: K | O9: Ca | P9: Mg | Q9: P | R9: Fe | S9: I | T9: Se | U9: F
C10: г | D10: г | E10: г | F10: г | G10: ккал | H10: мг | I10: мг | J10: мкг рет.экв | K10: мкг | L10: мг | M10: мг | N10: мг | O10: мг | P10: мг | Q10: мг | R10: мг | S10: мкг | T10: мкг | U10: мкг
B11: Завтрак
A12: 54-1о-2020 | B12: Омлет натуральный | C12: 150 | D12: 12.68 | E12: 17.95 | F12: 3.25 | G12: 225.2 | H12: 0.07 | I12: 0.4 | J12: 182.66 | K12: 2.18 | L12: 0 | M12: 264 | N12: 180 | O12: 110 | P12: 17 | Q12: 202 | R12: 2.1 | S12: 43.65 | T12: 26 | U12: 62.62
A13: 54-23гн-2020 | B13: Кофейный напиток с молоком | C13: 200 | D13: 3.9 | E13: 2.9 | F13: 11.2 | G13: 86 | H13: 0.03 | I13: 0.13 | J13: 13.29 | K13: 0 | L13: 0.52 | M13: 38.55 | N13: 183.98 | O13: 148.32 | P13: 30.67 | Q13: 106.79 | R13: 1.06 | S13: 9 | T13: 1.76 | U13: 20
A14: Пром. | B14: Хлеб пшеничный | C14: 40 | D14: 2.3 | E14: 0.2 | F14: 14.8 | G14: 70.3 | H14: 0.03 | I14: 0.01 | J14: 0 | K14: 0 | L14: 0 | M14: 149.7 | N14: 27.9 | O14: 6 | P14: 4.2 | Q14: 19.5 | R14: 0.33 | S14: 0.96 | T14: 1.8 | U14: 4.35
A15: Пром. | B15: Фрукт (яблоко, банан, апельсин) | C15: 100 | D15: 0.4 | E15: 0.4 | F15: 9.8 | G15: 44.4 | H15: 0.03 | I15: 0.02 | J15: 5 | K15: 0 | L15: 10 | M15: 26 | N15: 278 | O15: 16 | P15: 9 | Q15: 11 | R15: 2.2 | S15: 2 | T15: 0.3 | U15: 8
B16: Итого за Завтрак | C16: =C12+C13+C14+C15 -> 490 | D16: =D12+D13+D14+D15 -> 19.28 | E16: 21.45 | F16: 39.05 | G16: 425.9 | H16: 0.16 | I16: 0.56 | J16: 200.95 | K16: 2.18 | L16: 10.52 | M16: 478.25 | N16: 669.88 | O16: 280.32 | P16: 60.87 | Q16: 339.29 | R16: 5.69 | S16: 55.61 | T16: 29.86 | U16: 94.97
B17: Обед
A18: 54-7з-2020 | B18: Салат из белокочанной капусты с растительным маслом | C18: 60 | D18: 1.5 | E18: 6.1 | F18: 6.2 | G18: 85.8 | H18: 0.03 | I18: 0.04 | J18: 122.25 | K18: 0 | L18: 34.78 | M18: 88.69 | N18: 247.73 | O18: 40.39 | P18: 15.18 | Q18: 30.31 | R18: 0.55 | S18: 10.73 | T18: 0.26 | U18: 12.66
A19: 100 | B19: Суп картофельный с вермишелью | C19: 200 | D19: 2.3 | E19: 2.2 | F19: 16.2 | G19: 94.4 | H19: 0.1 | I19: 0 | J19: 0.2 | K19: 0 | L19: 5.3 | M19: 0 | N19: 0 | O19: 19.2 | P19: 18.7 | Q19: 46.1 | R19: 0.9 | S19: 0 | T19: 0 | U19: 0
A20: 54-4г-2020 | B20: Каша гречневая рассыпчатая | C20: 150 | D20: 8.2 | E20: 6.3 | F20: 35.9 | G20: 107.1 | H20: 0.21 | I20: 0.12 | J20: 19.19 | K20: 0.09 | L20: 0 | M20: 149.45 | N20: 219.36 | O20: 46.62 | P20: 120.16 | Q20: 180.99 | R20: 4.05 | S20: 22.28 | T20: 3.52 | U20: 16.06
A21: ном.рец №174 | B21: Тефтели мясные из говядины, полуфабрикат в соусе | C21: 75/30 | D21: 10.81 | E21: 10.4 | F21: 8.42 | G21: 168.9 | H21: 0 | I21: 0 | J21: 38.45 | K21: 0.01 | L21: 1.79 | M21: 3 | N21: 43 | O21: 45.75 | P21: 35.13 | Q21: 109 | R21: 1.6 | S21: 0 | T21: 0 | U21: 0
A22: 54-4гн-2020 | B22: Чай с молоком и сахаром | C22: 200 | D22: 1.6 | E22: 1.1 | F22: 8.6 | G22: 50.9 | H22: 0.01 | I22: 0.07 | J22: 6.9 | K22: 0 | L22: 0.3 | M22: 19.68 | N22: 81.35 | O22: 103.48 | P22: 9.92 | Q22: 46.33 | R22: 0.78 | S22: 4.5 | T22: 0.88 | U22: 10
A23: Т/к №102 | B23: Оладьи П/Ф (35 гр) 2шт | C23: 70 | D23: 5.6 | E23: 7.7 | F23: 37.8 | G23: 206.64 | H23: 0.16 | I23: 0 | J23: 0 | K23: 0 | L23: 0 | M23: 0 | N23: 0 | O23: 196.9 | P23: 38.48 | Q23: 85 | R23: 0.96 | S23: 0 | T23: 0 | U23: 0
A24: Пром. | B24: Хлеб ржаной | C24: 20 | D24: 1.3 | E24: 0.2 | F24: 6.7 | G24: 34.2 | H24: 0.04 | I24: 0.02 | J24: 0 | K24: 0 | L24: 0 | M24: 122 | N24: 49 | O24: 7 | P24: 9.4 | Q24: 31.6 | R24: 0.78 | S24: 0 | T24: 6.18 | U24: 0
A25: 54-1з | B25: Сыр твердых сортов в нарезке | C25: 20 | D25: 0.5 | E25: 0.55 | F25: 0 | G25: 71.7 | H25: 0.01 | I25: 0.06 | J25: 52 | K25: 0.19 | L25: 0 | M25: 162 | N25: 18 | O25: 176 | P25: 7 | Q25: 100 | R25: 0.2 | S25: 0 | T25: 2.9 | U25: 0
B26: Итого за Обед | C26: 825 | D26: =D18+D19+D20+D21+D22+D23+D24+D25 -> 31.81 | E26: =E18+E19+E20+E21+E22+E23+E24+E25 -> 34.55 | F26: 119.82 | G26: 819.64 | H26: 0.56 | I26: 0.31 | J26: 238.99 | K26: 0.29 | L26: 42.17 | M26: 544.82 | N26: 658.44 | O26: 635.34 | P26: 253.97 | Q26: 629.33 | R26: 9.82 | S26: 37.51 | T26: 13.74 | U26: 38.72
B27: Полдник
A28: Пром. | B28: Сок персиковый | C28: 200 | D28: 0.6 | E28: 0 | F28: 33 | G28: 134.4 | H28: 0.03 | I28: 0.06 | J28: 60 | K28: 0 | L28: 5 | M28: 9 | N28: 252 | O28: 9 | P28: 21 | Q28: 26 | R28: 0.3 | S28: 0 | T28: 0 | U28: 0
A29: Пром. | B29: Пряник | C29: 30 | D29: 1.8 | E29: 1.4 | F29: 22.5 | G29: 109.8 | H29: 0.02 | I29: 0.01 | J29: 0 | K29: 0 | L29: 0 | M29: 0.6 | N29: 21.3 | O29: 3.3 | P29: 2.7 | Q29: 15 | R29: 0.24 | S29: 0 | T29: 0 | U29: 0
B30: Итого за Полдник | C30: =C28+C29 -> 230 | D30: =D28+D29 -> 2.4 | E30: 1.4 | F30: 55.5 | G30: 244.2 | H30: 0.05 | I30: 0.07 | J30: 60 | K30: 0 | L30: 5 | M30: 9.6 | N30: 273.3 | O30: 12.3 | P30: 23.7 | Q30: 41 | R30: 0.54 | S30: 0 | T30: 0 | U30: 0
B31: Ужин
A32: 54-1г-2020 | B32: Макароны отварные | C32: 150 | D32: 5.3 | E32: 4.9 | F32: 32.8 | G32: 196.8 | H32: 0.06 | I32: 0.02 | J32: 18.36 | K32: 0.09 | L32: 0 | M32: 149.04 | N32: 53.8 | O32: 105.83 | P32: 7.19 | Q32: 40.7 | R32: 0.73 | S32: 20.77 | T32: 0.06 | U32: 11.92
A33: 54-2м-2020 | B33: Гуляш из говядины | C33: 60/40 | D33: 13.76 | E33: 13.91 | F33: 3.9 | G33: 195.8 | H33: 0.04 | I33: 0.12 | J33: 25.46 | K33: 0.07 | L33: 1 | M33: 122 | N33: 322 | O33: 55 | P33: 23 | Q33: 166 | R33: 2.5 | S33: 17.06 | T33: 0.4 | U33: 62.71
A34: 54-1хн-2020 | B34: Компот из смеси сухофруктов | C34: 200 | D34: 0.5 | E34: 0 | F34: 19.8 | G34: 81 | H34: 0 | I34: 0 | J34: 15 | K34: 0 | L34: 0.02 | M34: 0.05 | N34: 0.17 | O34: 108.08 | P34: 2.11 | Q34: 4.31 | R34: 0.08 | S34: 0 | T34: 0 | U34: 0
A35: Пром. | B35: Хлеб пшеничный | C35: 30 | D35: 2.3 | E35: 0.2 | F35: 14.8 | G35: 70.3 | H35: 0.03 | I35: 0.01 | J35: 0 | K35: 0 | L35: 0 | M35: 149.7 | N35: 27.9 | O35: 6 | P35: 4.2 | Q35: 19.5 | R35: 0.33 | S35: 0.96 | T35: 1.8 | U35: 4.35
A36: Пром. | B36: Хлеб ржаной | C36: 20 | D36: 1.3 | E36: 0.2 | F36: 6.7 | G36: 34.2 | H36: 0.04 | I36: 0.02 | J36: 0 | K36: 0 | L36: 0 | M36: 122 | N36: 49 | O36: 7 | P36: 9.4 | Q36: 31.6 | R36: 0.78 | S36: 0 | T36: 6.18 | U36: 0
B37: Итого за Ужин | C37: 500 | D37: =D32+D33+D34+D35+D15+D39+D36 -> 29.36 | E37: =E32+E33+E34+E35+E15+E39+E36 -> 24.61 | F37: 96.2 | G37: 724.3 | H37: 0.23 | I37: 0.4 | J37: 90.22 | K37: 0.16 | L37: 11.02 | M37: 644.79 | N37: 972.87 | O37: 515.91 | P37: 78.9 | Q37: 433.11 | R37: 6.82 | S37: 58.79 | T37: 10.54 | U37: 126.98
B38: Ужин 2
A39: Пром. | B39: Ряженка 2.5% | C39: 200 | D39: 5.8 | E39: 5 | F39: 8.4 | G39: 101.8 | H39: 0.03 | I39: 0.21 | J39: 26.4 | K39: 0 | L39: 0 | M39: 76 | N39: 242 | O39: 218 | P39: 24 | Q39: 160 | R39: 0.2 | S39: 18 | T39: 1.8 | U39: 40
B40: Итого за ужин 2 | C40: =C39 -> 200 | D40: =D39 -> 5.8 | E40: 5 | F40: 8.4 | G40: 101.8 | H40: 0.03 | I40: 0.21 | J40: 26.4 | K40: 0 | L40: 0 | M40: 76 | N40: 242 | O40: 218 | P40: 24 | Q40: 160 | R40: 0.2 | S40: 18 | T40: 1.8 | U40: 40
B41: Итого за день | C41: =C16+C26+C30+C37+C40 -> 2245 | D41: =D16+D26+D30+D37+D40 -> 88.65 | E41: 87.01 | F41: 318.97 | G41: 2315.84 | H41: 1.03 | I41: 1.55 | J41: 616.56 | K41: 2.63 | L41: 68.71 | M41: 1753.46 | N41: 2816.49 | O41: 1661.87 | P41: 441.44 | Q41: 1602.73 | R41: 23.07 | S41: 169.91 | T41: 55.94 | U41: 300.67
A43: 2 день, 1 неделя
A44: № рецептуры | B44: Прием пищи, наименование блюда | C44: Масса | D44: Пищевые вещества | G44: Энергетическая ценность | H44: Витамины | M44: Минеральные вещества
D45: Белки | E45: Жиры | F45: Углеводы | H45: B1 | I45: B2 | J45: A | K45: D | L45: C | M45: Na | N45: K | O45: Ca | P45: Mg | Q45: P | R45: Fe | S45: I | T45: Se | U45: F
C46: г | D46: г | E46: г | F46: г | G46: ккал | H46: мг | I46: мг | J46: мкг рет.экв | K46: мкг | L46: мг | M46: мг | N46: мг | O46: мг | P46: мг | Q46: мг | R46: мг | S46: мкг | T46: мкг | U46: мкг
B47: Завтрак
A48: 54-1з-2020 | B48: Сыр твердых сортов в нарезке | C48: 10 | D48: 3.48 | E48: 4.42 | F48: 0 | G48: 53.7 | H48: 0 | I48: 0.04 | J48: 23.4 | K48: 0.14 | L48: 0.04 | M48: 92.34 | N48: 10.96 | O48: 116.16 | P48: 4.57 | Q48: 65.25 | R48: 0.13 | S48: 0 | T48: 1.9 | U48: 0
A49: 54-22к-2020 | B49: Каша жидкая молочная овсяная | C49: 200 | D49: 6.82 | E49: 7.44 | F49: 24.61 | G49: 192.6 | H49: 0.14 | I49: 0.17 | J49: 29.08 | K49: 0.07 | L49: 1 | M49: 348 | N49: 237 | O49: 164 | P49: 45 | Q49: 188 | R49: 1.1 | S49: 52.01 | T49: 9.9 | U49: 49.61
A50: 54-2гн-2020 | B50: Чай с сахаром | C50: 200 | D50: 0.2 | E50: 0 | F50: 6.4 | G50: 26.8 | H50: 0 | I50: 0.01 | J50: 0.3 | K50: 0 | L50: 0.04 | M50: 0.68 | N50: 20.76 | O50: 66.08 | P50: 3.83 | Q50: 7.18 | R50: 0.73 | S50: 0 | T50: 0 | U50: 0
A51: Пром. | B51: Хлеб пшеничный | C51: 30 | D51: 2.3 | E51: 0.2 | F51: 14.8 | G51: 70.3 | H51: 0.03 | I51: 0.01 | J51: 0 | K51: 0 | L51: 0 | M51: 149.7 | N51: 27.9 | O51: 6 | P51: 4.2 | Q51: 19.5 | R51: 0.33 | S51: 0.96 | T51: 1.8 | U51: 4.35
A52: Пром. | B52: Хлеб ржаной | C52: 20 | D52: 1.3 | E52: 0.2 | F52: 6.7 | G52: 34.2 | H52: 0.04 | I52: 0.02 | J52: 0 | K52: 0 | L52: 0 | M52: 122 | N52: 49 | O52: 7 | P52: 9.4 | Q52: 31.6 | R52: 0.78 | S52: 0 | T52: 6.18 | U52: 0
B53: Итого за Завтрак | C53: =C48+C49+C50+C51+C52 -> 460 | D53: =D48+D49+D50+D51+D52 -> 14.1 | E53: 12.26 | F53: 52.51 | G53: 377.6 | H53: 0.21 | I53: 0.25 | J53: 52.78 | K53: 0.21 | L53: 1.08 | M53: 712.72 | N53: 345.62 | O53: 359.24 | P53: 67 | Q53: 311.53 | R53: 3.07 | S53: 52.97 | T53: 19.78 | U53: 53.96
B54: Обед
A55: 54-11з-2020 | B55: Салат из моркови с яблоками с растительным маслом | C55: 60 | D55: 0.5 | E55: 6.1 | F55: 4.3 | G55: 74.3 | H55: 0.03 | I55: 0.03 | J55: 732.9 | K55: 0 | L55: 3.63 | M55: 89.79 | N55: 123.26 | O55: 13.5 | P55: 15.57 | Q55: 22.38 | R55: 0.66 | S55: 10.19 | T55: 0.09 | U55: 21.57
A56: 54-1с-2020 | B56: Суп щи | C56: 200 | D56: 4.66 | E56: 5.63 | F56: 5.73 | G56: 92.2 | H56: 0.01 | I56: 0.03 | J56: 104.94 | K56: 0 | L56: 10 | M56: 98 | N56: 184 | O56: 37 | P56: 13 | Q56: 30 | R56: 0.4 | S56: 15.25 | T56: 0.2 | U56: 14.76
A57: 54-6г-2020 | B57: Рис отварной | C57: 150 | D57: 3.6 | E57: 4.8 | F57: 36.4 | G57: 203.5 | H57: 0.03 | I57: 0.02 | J57: 18.36 | K57: 0.09 | L57: 0 | M57: 152.8 | N57: 46.55 | O57: 106.65 | P57: 23.59 | Q57: 72.57 | R57: 0.49 | S57: 20.76 | T57: 7.24 | U57: 27.19
A58: №Т/К 272 | B58: Котлета мясная с соусом | C58: 65/35 | D58: 11.4 | E58: 9.3 | F58: 12.4 | G58: 179.2 | H58: 0 | I58: 0 | J58: 0.1 | K58: 0 | L58: 1.8 | M58: 0 | N58: 0 | O58: 18.9 | P58: 22.1 | Q58: 115.5 | R58: 1.9 | S58: 0 | T58: 0 | U58: 0
A59: 54-5хн | B59: Компот из яблок и вишни | C59: 200 | D59: 0.23 | E59: 0.11 | F59: 10.15 | G59: 22.5 | H59: 0 | I59: 0 | J59: 2.53 | K59: 0 | L59: 2 | M59: 8 | N59: 91 | O59: 64 | P59: 6 | Q59: 7 | R59: 0.5 | S59: 0.82 | T59: 0.1 | U59: 4.18
A60: Пром. | B60: Хлеб пшеничный | C60: 20 | D60: 1.52 | E60: 0.16 | F60: 9.84 | G60: 46.9 | H60: 0.02 | I60: 0.01 | J60: 0 | K60: 0 | L60: 0 | M60: 100 | N60: 19 | O60: 4 | P60: 3 | Q60: 13 | R60: 0.2 | S60: 0.64 | T60: 1.2 | U60: 2.9
A61: Пром. | B61: Хлеб ржаной | C61: 20 | D61: 1.3 | E61: 0.2 | F61: 6.7 | G61: 34.2 | H61: 0.04 | I61: 0.02 | J61: 0 | K61: 0 | L61: 0 | M61: 122 | N61: 49 | O61: 7 | P61: 9.4 | Q61: 31.6 | R61: 0.78 | S61: 0 | T61: 6.18 | U61: 0
A62: Пром. | B62: Сушка простая | C62: 30 | D62: 0.8 | E62: 0.39 | F62: 3.5 | G62: 26.5 | H62: 0.05 | I62: 0.02 | J62: 0 | K62: 0 | L62: 0 | M62: 138 | N62: 46 | O62: 8 | P62: 12 | Q62: 32 | R62: 0.8 | S62: 0 | T62: 0 | U62: 0
B63: Итого за Обед | C63: 780 | D63: =SUM(D55:D62) -> 24.01 | E63: =SUM(E55:E62) -> 26.69 | F63: 89.02 | G63: 679.3 | H63: 0.18 | I63: 0.13 | J63: 858.83 | K63: 0.09 | L63: 17.43 | M63: 708.59 | N63: 558.81 | O63: 259.05 | P63: 104.66 | Q63: 324.05 | R63: 5.73 | S63: 47.66 | T63: 15.01 | U63: 70.6
B64: Полдник
A65: Пром. | B65: Вафли с фруктовыми начинками | C65: 30 | D65: 0.84 | E65: 0.99 | F65: 23.19 | G65: 105 | H65: 0.01 | I65: 0.01 | J65: 0.54 | K65: 0 | L65: 0 | M65: 11.17 | N65: 34.86 | O65: 4.22 | P65: 2.61 | Q65: 9.4 | R65: 0.39 | S65: 0 | T65: 0 | U65: 0
A66: Пром. | B66: Сок яблочный | C66: 200 | D66: 1 | E66: 0.2 | F66: 20.2 | G66: 86.6 | H66: 0.02 | I66: 0.02 | J66: 0 | K66: 0 | L66: 4 | M66: 12 | N66: 240 | O66: 14 | P66: 8 | Q66: 14 | R66: 2.8 | S66: 0 | T66: 0 | U66: 0
B67: Итого за Полдник | C67: =C65+C66 -> 230 | D67: =D65+D66 -> 1.84 | E67: 1.19 | F67: 43.39 | G67: 191.6 | H67: 0.03 | I67: 0.03 | J67: 0.54 | K67: 0 | L67: 4 | M67: 23.17 | N67: 274.86 | O67: 18.22 | P67: 10.61 | Q67: 23.4 | R67: 3.19 | S67: 0 | T67: 0 | U67: 0
B68: Ужин
A69: 54-6т-2020 | B69: Сырники из творога | C69: 160 | D69: 31.4 | E69: 9.2 | F69: 26.3 | G69: 313.2 | H69: 0.07 | I69: 0.33 | J69: 46.02 | K69: 0.15 | L69: 0.3 | M69: 146.88 | N69: 169.42 | O69: 219.92 | P69: 33.17 | Q69: 304.73 | R69: 0.87 | S69: 27.47 | T69: 40.06 | U69: 54.51
A70: 54-33хн-2020 | B70: Напиток апельсиновый | C70: 200 | D70: 0.2 | E70: 0 | F70: 8 | G70: 33 | H70: 0.01 | I70: 0.01 | J70: 1.06 | K70: 0 | L70: 5.28 | M70: 2.23 | N70: 36.15 | O70: 74.47 | P70: 2.49 | Q70: 4.4 | R70: 0.08 | S70: 0.44 | T70: 0.1 | U70: 3.74
A71: Пром. | B71: Хлеб пшеничный | C71: 30 | D71: 2.3 | E71: 0.2 | F71: 14.8 | G71: 70.3 | H71: 0.03 | I71: 0.01 | J71: 0 | K71: 0 | L71: 0 | M71: 149.7 | N71: 27.9 | O71: 6 | P71: 4.2 | Q71: 19.5 | R71: 0.33 | S71: 0.96 | T71: 1.8 | U71: 4.35
A72: 451 СПБ 2008 | B72: Пирожок печеный с картошкой | C72: 100 | D72: 1.6 | E72: 0.2 | F72: 10.3 | G72: 49.6 | H72: 0.03 | I72: 0.01 | J72: 0 | K72: 0 | L72: 0 | M72: 90.75 | N72: 27.75 | O72: 4.5 | P72: 6.9 | Q72: 18.15 | R72: 0.44 | S72: 0 | T72: 0 | U72: 0
B73: Итого за Ужин | C73: =C69+C70+C71+C72 -> 490 | D73: =D69+D70+D71+D72 -> 35.5 | E73: 9.6 | F73: 59.4 | G73: 466.1 | H73: 0.14 | I73: 0.36 | J73: 47.08 | K73: 0.15 | L73: 5.58 | M73: 389.56 | N73: 261.22 | O73: 304.89 | P73: 46.76 | Q73: 346.78 | R73: 1.72 | S73: 28.87 | T73: 41.96 | U73: 62.6
B74: Ужин 2
A75: Пром. | B75: Кефир 3.2% | C75: 200 | D75: 5.8 | E75: 5 | F75: 8 | G75: 100.2 | H75: 0.06 | I75: 0.27 | J75: 26.4 | K75: 0 | L75: 1 | M75: 76 | N75: 242 | O75: 211 | P75: 24 | Q75: 157 | R75: 0.2 | S75: 18 | T75: 3.5 | U75: 40
B76: Итого за ужин 2 | C76: =C75 -> 200 | D76: =D75 -> 5.8 | E76: 5 | F76: 8 | G76: 100.2 | H76: 0.06 | I76: 0.27 | J76: 26.4 | K76: 0 | L76: 1 | M76: 76 | N76: 242 | O76: 211 | P76: 24 | Q76: 157 | R76: 0.2 | S76: 18 | T76: 3.5 | U76: =U75 -> 40
B77: Итого за день | C77: =C53+C63+C67+C73+C76 -> 2160 | D77: 81.25 | E77: 54.74 | F77: 252.32 | G77: 1814.8 | H77: 0.62 | I77: 1.04 | J77: 985.63 | K77: 0.45 | L77: 29.09 | M77: 1910.04 | N77: 1682.51 | O77: 1152.4 | P77: 253.03 | Q77: 1162.76 | R77: 13.91 | S77: 147.5 | T77: 80.25 | U77: 227.16
A79: 3 день, 1 неделя
A80: № рецептуры | B80: Прием пищи, наименование блюда | C80: Масса | D80: Пищевые вещества | G80: Энергетическая ценность | H80: Витамины | M80: Минеральные вещества
D81: Белки | E81: Жиры | F81: Углеводы | H81: B1 | I81: B2 | J81: A | K81: D | L81: C | M81: Na | N81: K | O81: Ca | P81: Mg | Q81: P | R81: Fe | S81: I | T81: Se | U81: F
C82: г | D82: г | E82: г | F82: г | G82: ккал | H82: мг | I82: мг | J82: мкг рет.экв | K82: мкг | L82: мг | M82: мг | N82: мг | O82: мг | P82: мг | Q82: мг | R82: мг | S82: мкг | T82: мкг | U82: мкг
B83: Завтрак
A84: 53-19з-2020 | B84: Масло сливочное (порциями) | C84: 10 | D84: 0.08 | E84: 7.25 | F84: 0.13 | G84: 66.1 | H84: 0 | I84: 0.01 | J84: 27 | K84: 0.13 | L84: 0 | M84: 1.14 | N84: 2.49 | O84: 2.11 | P84: 0 | Q84: 2.61 | R84: 0.02 | S84: 0 | T84: 0.1 | U84: 0.3
A85: 54-21к-2020 | B85: Каша вязкая молочная ячневая | C85: 150 | D85: 5.4 | E85: 7 | F85: 25.6 | G85: 186.8 | H85: 0.09 | I85: 0.13 | J85: 31.14 | K85: 0.1 | L85: 0.43 | M85: 256.67 | N85: 158.61 | O85: 127.09 | P85: 24.68 | Q85: 166.41 | R85: 0.63 | S85: 37.43 | T85: 12.57 | U85: 46.68
A86: 54-1хн-2020 | B86: Компот из смеси сухофруктов | C86: 200 | D86: 0.5 | E86: 0 | F86: 19.8 | G86: 81 | H86: 0 | I86: 0 | J86: 15 | K86: 0 | L86: 0.02 | M86: 0.05 | N86: 0.17 | O86: 108.08 | P86: 2.11 | Q86: 4.31 | R86: 0.08 | S86: 0 | T86: 0 | U86: 0
A87: Пром. | B87: Хлеб пшеничный | C87: 40 | D87: 2.3 | E87: 0.2 | F87: 14.8 | G87: 70.3 | H87: 0.03 | I87: 0.01 | J87: 0 | K87: 0 | L87: 0 | M87: 149.7 | N87: 27.9 | O87: 6 | P87: 4.2 | Q87: 19.5 | R87: 0.33 | S87: 0.96 | T87: 1.8 | U87: 4.35
B88: Итого за Завтрак | C88: =C84+C85+C86+C87 -> 400 | D88: =D84+D85+D86+D87 -> 8.28 | E88: 14.45 | F88: 60.33 | G88: 404.2 | H88: 0.12 | I88: 0.15 | J88: 73.14 | K88: 0.23 | L88: 0.45 | M88: 407.56 | N88: 189.17 | O88: 243.28 | P88: 30.99 | Q88: 192.83 | R88: 1.06 | S88: 38.39 | T88: 14.47 | U88: 51.33
B89: Обед
A90: 54-16з-2020 | B90: Винегрет с растительным маслом | C90: 60 | D90: 0.7 | E90: 5.4 | F90: 4 | G90: 67.1 | H90: 0.02 | I90: 0.02 | J90: 72.89 | K90: 0 | L90: 2.26 | M90: 200.99 | N90: 127.85 | O90: 12.1 | P90: 9.66 | Q90: 21.4 | R90: 0.41 | S90: 7.86 | T90: 0.13 | U90: 11.85
A91: 54-11с-2020 | B91: Суп крестьянский с крупой (крупа рисовая) | C91: 200 | D91: 5 | E91: 5.8 | F91: 11.3 | G91: 116.9 | H91: 0.04 | I91: 0.04 | J91: 103.29 | K91: 0 | L91: 6.42 | M91: 96.69 | N91: 195.41 | O91: 25.55 | P91: 15.32 | Q91: 40.39 | R91: 0.5 | S91: 15.37 | T91: 1.25 | U91: 20.68
A92: 54-1г-2020 | B92: Макароны отварные | C92: 150 | D92: 5.3 | E92: 4.9 | F92: 32.8 | G92: 196.8 | H92: 0.06 | I92: 0.02 | J92: 18.36 | K92: 0.09 | L92: 0 | M92: 149.04 | N92: 53.8 | O92: 105.83 | P92: 7.19 | Q92: 40.7 | R92: 0.73 | S92: 20.77 | T92: 0.06 | U92: 11.92
A93: № рец. 290 | B93: Птица тушеная в соусе | C93: 50/50 | D93: 13.8 | E93: 14.8 | F93: 3.9 | G93: 145 | H93: 0.1 | I93: 0 | J93: 0 | K93: 0 | L93: 1.5 | M93: 0 | N93: 0 | O93: 26.4 | P93: 16.6 | Q93: 115.3 | R93: 0.9 | S93: 0 | T93: 0 | U93: 0
A94: 54-3гн-2020 | B94: Чай с лимоном и сахаром | C94: 207 | D94: 0.2 | E94: 0.1 | F94: 6.6 | G94: 27.9 | H94: 0 | I94: 0.01 | J94: 0.38 | K94: 0 | L94: 1.16 | M94: 1.26 | N94: 30.23 | O94: 67 | P94: 4.56 | Q94: 8.52 | R94: 0.77 | S94: 0.01 | T94: 0.02 | U94: 0.7
A95: Пром. | B95: Хлеб ржаной | C95: 20 | D95: 1.3 | E95: 0.2 | F95: 6.7 | G95: 34.2 | H95: 0.04 | I95: 0.02 | J95: 0 | K95: 0 | L95: 0 | M95: 122 | N95: 49 | O95: 7 | P95: 9.4 | Q95: 31.6 | R95: 0.78 | S95: 0 | T95: 6.18 | U95: 0
A96: Пром. | B96: Хлеб пшеничный | C96: 20 | D96: 1.52 | E96: 0.16 | F96: 9.84 | G96: 46.9 | H96: 0.02 | I96: 0.01 | J96: 0 | K96: 0 | L96: 0 | M96: 100 | N96: 19 | O96: 4 | P96: 3 | Q96: 13 | R96: 0.2 | S96: 0.64 | T96: 1.2 | U96: 2.9
A97: Пром. | B97: Фрукт (яблоко, банан, апельсин) | C97: 100 | D97: 0.6 | E97: 0.6 | F97: 14.7 | G97: 66.6 | H97: 0.04 | I97: 0.03 | J97: 7.5 | K97: 0 | L97: 15 | M97: 39 | N97: 417 | O97: 24 | P97: 14 | Q97: 17 | R97: 3.3 | S97: 3 | T97: 0.4 | U97: 12
B98: Итого за Обед | C98: 857 | D98: =D90+D91+D92+D93+D94+D95+D96+D97 -> 28.42 | E98: =E90+E91+E92+E93+E94+E95+E96+E97 -> 31.96 | F98: 89.84 | G98: 701.4 | H98: 0.32 | I98: 0.15 | J98: 202.42 | K98: 0.09 | L98: 26.34 | M98: 708.98 | N98: 892.29 | O98: 271.88 | P98: 79.73 | Q98: 287.91 | R98: 7.59 | S98: 47.65 | T98: 9.24 | U98: 60.05
B99: Полдник
A100: Пром. | B100: Сок персиковый | C100: 200 | D100: 0.6 | E100: 0 | F100: 33 | G100: 134.4 | H100: 0.03 | I100: 0.06 | J100: 60 | K100: 0 | L100: 5 | M100: 9 | N100: 252 | O100: 9 | P100: 21 | Q100: 26 | R100: 0.3 | S100: 0 | T100: 0 | U100: 0
A101: 54-10в-2020 | B101: Булочка ванильная | C101: 60 | D101: 4.7 | E101: 4 | F101: 30.5 | G101: 176.9 | H101: 0.06 | I101: 0.03 | J101: 19.12 | K101: 0.14 | L101: 0 | M101: 240.68 | N101: 50.54 | O101: 17.63 | P101: 6.52 | Q101: 40.93 | R101: 0.57 | S101: 33.36 | T101: 3.15 | U101: 11.03
B102: Итого за Полдник | C102: =C100+C101 -> 260 | D102: =D100+D101 -> 5.3 | E102: 4 | F102: 63.5 | G102: 311.3 | H102: 0.09 | I102: 0.09 | J102: 79.12 | K102: 0.14 | L102: 5 | M102: 249.68 | N102: 302.54 | O102: 26.63 | P102: 27.52 | Q102: 66.93 | R102: 0.87 | S102: 33.36 | T102: 3.15 | U102: 11.03
B103: Ужин
A104: 54-22м-2020 | B104: Рагу из курицы | C104: 160/60 | D104: 23.05 | E104: 7.74 | F104: 19.27 | G104: 239 | H104: 0.15 | I104: 0.12 | J104: 285.64 | K104: 0 | L104: 13 | M104: 310 | N104: 812 | O104: 34 | P104: 102 | Q104: 213 | R104: 2.3 | S104: 47.26 | T104: 18.7 | U104: 172
A105: Пром. | B105: Хлеб ржаной | C105: 20 | D105: 1.3 | E105: 0.2 | F105: 6.7 | G105: 34.2 | H105: 0.04 | I105: 0.02 | J105: 0 | K105: 0 | L105: 0 | M105: 122 | N105: 49 | O105: 7 | P105: 9.4 | Q105: 31.6 | R105: 0.78 | S105: 0 | T105: 6.18 | U105: 0
A106: Пром. | B106: Хлеб пшеничный | C106: 30 | D106: 2.3 | E106: 0.2 | F106: 14.8 | G106: 70.3 | H106: 0.03 | I106: 0.01 | J106: 0 | K106: 0 | L106: 0 | M106: 149.7 | N106: 27.9 | O106: 6 | P106: 4.2 | Q106: 19.5 | R106: 0.33 | S106: 0.96 | T106: 1.8 | U106: 4.35
A107: 54-4гн-2020 | B107: Чай с молоком и сахаром | C107: 200 | D107: 1.6 | E107: 1.1 | F107: 8.6 | G107: 50.9 | H107: 0.01 | I107: 0.07 | J107: 6.9 | K107: 0 | L107: 0.3 | M107: 19.68 | N107: 81.35 | O107: 103.48 | P107: 9.92 | Q107: 46.33 | R107: 0.78 | S107: 4.5 | T107: 0.88 | U107: 10
B108: Итого за Ужин | C108: 470 | D108: =SUM(D104:D107) -> 28.25 | E108: =SUM(E104:E107) -> 9.24 | F108: 49.37 | G108: =SUM(G104:G107) -> 394.4 | H108: 0.23 | I108: 0.22 | J108: 292.54 | K108: 0 | L108: 13.3 | M108: 601.38 | N108: 970.25 | O108: 150.48 | P108: 125.52 | Q108: 310.43 | R108: 4.19 | S108: 52.72 | T108: 27.56 | U108: 186.35
B109: Ужин 2
A110: Пром. | B110: Ряженка 2.5% | C110: 200 | D110: 5.8 | E110: 5 | F110: 8.4 | G110: 101.8 | H110: 0.03 | I110: 0.21 | J110: 26.4 | K110: 0 | L110: 0 | M110: 76 | N110: 242 | O110: 218 | P110: 24 | Q110: 160 | R110: 0.2 | S110: 18 | T110: 1.8 | U110: 40
B111: Итого за ужин 2 | C111: =C110 -> 200 | D111: =D110 -> 5.8 | E111: 5 | F111: 8.4 | G111: 101.8 | H111: 0.03 | I111: 0.21 | J111: 26.4 | K111: 0 | L111: 0 | M111: 76 | N111: 242 | O111: 218 | P111: 24 | Q111: 160 | R111: 0.2 | S111: 18 | T111: 1.8 | U111: 40
B112: Итого за день | C112: =C88+C98+C102+C108+C111 -> 2187 | D112: =D88+D98+D102+D108+D111 -> 76.05 | E112: 64.65 | F112: 271.44 | G112: 1913.1 | H112: 0.79 | I112: 0.82 | J112: 673.62 | K112: 0.46 | L112: 45.09 | M112: 2043.6 | N112: 2596.25 | O112: 910.27 | P112: 287.76 | Q112: 1018.1 | R112: 13.91 | S112: 190.12 | T112: 56.22 | U112: 348.76
A114: 4 день, 1 неделя
A115: № рецептуры | B115: Прием пищи, наименование блюда | C115: Масса | D115: Пищевые вещества | G115: Энергетическая ценность | H115: Витамины | M115: Минеральные вещества
D116: Белки | E116: Жиры | F116: Углеводы | H116: B1 | I116: B2 | J116: A | K116: D | L116: C | M116: Na | N116: K | O116: Ca | P116: Mg | Q116: P | R116: Fe | S116: I | T116: Se | U116: F
C117: г | D117: г | E117: г | F117: г | G117: ккал | H117: мг | I117: мг | J117: мкг рет.экв | K117: мкг | L117: мг | M117: мг | N117: мг | O117: мг | P117: мг | Q117: мг | R117: мг | S117: мкг | T117: мкг | U117: мкг
B118: Завтрак
A119: 54-1з-2020 | B119: Сыр твердых сортов в нарезке | C119: 10 | D119: 2.8 | E119: 3.5 | F119: 0 | G119: 43 | H119: 0 | I119: 0.04 | J119: 31.2 | K119: 0.12 | L119: 0.08 | M119: 97.2 | N119: 10.56 | O119: 105.6 | P119: 4.2 | Q119: 60 | R119: 0.12 | S119: 0 | T119: 1.74 | U119: 0
A120: 54-13к-2020 | B120: Каша вязкая молочная пшеничная | C120: 150 | D120: 6.1 | E120: 6.9 | F120: 29 | G120: 202.7 | H120: 0.1 | I120: 0.13 | J120: 30.74 | K120: 0.1 | L120: 0.41 | M120: 256.57 | N120: 169.91 | O120: 113.68 | P120: 29.4 | Q120: 154.74 | R120: 1.64 | S120: 37.16 | T120: 24.8 | U120: 16.11
A121: 54-2гн-2020 | B121: Чай с сахаром | C121: 200 | D121: 0.2 | E121: 0 | F121: 6.4 | G121: 26.8 | H121: 0 | I121: 0.01 | J121: 0.3 | K121: 0 | L121: 0.04 | M121: 0.68 | N121: 20.76 | O121: 66.08 | P121: 3.83 | Q121: 7.18 | R121: 0.73 | S121: 0 | T121: 0 | U121: 0
A122: Пром. | B122: Хлеб пшеничный | C122: 40 | D122: 2.3 | E122: 0.2 | F122: 14.8 | G122: 70.3 | H122: 0.03 | I122: 0.01 | J122: 0 | K122: 0 | L122: 0 | M122: 149.7 | N122: 27.9 | O122: 6 | P122: 4.2 | Q122: 19.5 | R122: 0.33 | S122: 0.96 | T122: 1.8 | U122: 4.35
B123: Итого за Завтрак | C123: =C119+C120+C121+C122 -> 400 | D123: =D119+D120+D121+D122 -> 11.4 | E123: 10.6 | F123: 50.2 | G123: 342.8 | H123: 0.13 | I123: 0.19 | J123: 62.24 | K123: 0.22 | L123: 0.53 | M123: 504.15 | N123: 229.13 | O123: 291.36 | P123: 41.63 | Q123: 241.42 | R123: 2.82 | S123: 38.12 | T123: 28.34 | U123: 20.46
B124: Обед
A125: 54-9з-2020 | B125: Салат из белокочанной капусты с морковью и яблоками с растительным маслом | C125: 60 | D125: 0.8 | E125: 6.1 | F125: 3.6 | G125: 72.5 | H125: 0.02 | I125: 0.02 | J125: 241.63 | K125: 0 | L125: 17.32 | M125: 87.51 | N125: 160.14 | O125: 23.5 | P125: 11.17 | Q125: 18.8 | R125: 0.56 | S125: 9.87 | T125: 0.15 | U125: 10.98
A126: 54-6с-2020 | B126: Суп картофельный с клецками | C126: 200 | D126: 4.6 | E126: 3.3 | F126: 11.4 | G126: 93.6 | H126: 0.05 | I126: 0.04 | J126: 101.43 | K126: 0.05 | L126: 3.69 | M126: 58.01 | N126: 222.12 | O126: 13.28 | P126: 12.74 | Q126: 35.97 | R126: 0.54 | S126: 10.28 | T126: 0.94 | U126: 21.22
A127: 54-11г-2020 | B127: Картофельное пюре | C127: 150 | D127: 3.1 | E127: 5.3 | F127: 19.8 | G127: 139.4 | H127: 0.12 | I127: 0.11 | J127: 23.8 | K127: 0.09 | L127: 10.2 | M127: 161.78 | N127: 624.83 | O127: 39.49 | P127: 28.23 | Q127: 84.47 | R127: 1.03 | S127: 28.46 | T127: 0.78 | U127: 42.79
A128: №243 | B128: Сосиски говяжьи отварные, п/ф (2 шт) | C128: 100 | D128: 8.9 | E128: 7.35 | F128: 19.1 | G128: 202.15 | H128: 0 | I128: 0 | J128: 0.08 | K128: 0.01 | L128: 0 | M128: 0 | N128: 0 | O128: 7.44 | P128: 15.51 | Q128: 137.39 | R128: 1.74 | S128: 0 | T128: 0 | U128: 0
A129: Т/к №430 | B129: Чай с сахаром и яблоком | C129: 200 | D129: 0.2 | E129: 0 | F129: 8.2 | G129: 34.1 | H129: 0 | I129: 0 | J129: 0 | K129: 0 | L129: 0.4 | M129: 0 | N129: 0 | O129: 14.1 | P129: 6.5 | Q129: 8.4 | R129: 0.9 | S129: 0 | T129: 0 | U129: 0
A130: Пром. | B130: Хлеб пшеничный | C130: 20 | D130: 1.52 | E130: 0.16 | F130: 9.84 | G130: 46.9 | H130: 0.02 | I130: 0.01 | J130: 0 | K130: 0 | L130: 0 | M130: 100 | N130: 19 | O130: 4 | P130: 3 | Q130: 13 | R130: 0.2 | S130: 0.64 | T130: 1.2 | U130: 2.9
A131: Пром. | B131: Хлеб ржаной | C131: 20 | D131: 1.3 | E131: 0.2 | F131: 6.7 | G131: 34.2 | H131: 0.04 | I131: 0.02 | J131: 0 | K131: 0 | L131: 0 | M131: 122 | N131: 49 | O131: 7 | P131: 9.4 | Q131: 31.6 | R131: 0.78 | S131: 0 | T131: 6.18 | U131: 0
B132: Итого за Обед | C132: =C125+C126+C127+C128+C129+C130+C131 -> 750 | D132: =D125+D126+D127+D128+D129+D130+D131 -> 20.42 | E132: =E125+E126+E127+E128+E129+E130+E131 -> 22.41 | F132: =F125+F126+F127+F128+F129+F130+F131 -> 78.64 | G132: 622.85 | H132: 0.25 | I132: 0.2 | J132: 366.94 | K132: 0.15 | L132: 31.61 | M132: 529.3 | N132: 1075.09 | O132: 108.81 | P132: 86.55 | Q132: 329.63 | R132: 5.75 | S132: 49.25 | T132: 9.25 | U132: 77.89
B133: Полдник
A134: Пром. | B134: Сушка простая | C134: 20 | D134: 3.27 | E134: 0.39 | F134: 20.64 | G134: 99.1 | H134: 0.05 | I134: 0.02 | J134: 0 | K134: 0 | L134: 0 | M134: 137.94 | N134: 46.06 | O134: 7.92 | P134: 12.01 | Q134: 31.58 | R134: 0.76 | S134: 0 | T134: 0 | U134: 0
A135: Пром. | B135: Сок яблочный | C135: 200 | D135: 1 | E135: 0.2 | F135: 20.2 | G135: 86.6 | H135: 0.02 | I135: 0.02 | J135: 0 | K135: 0 | L135: 4 | M135: 12 | N135: 240 | O135: 14 | P135: 8 | Q135: 14 | R135: 2.8 | S135: 0 | T135: 0 | U135: 0
B136: Итого за Полдник | C136: =C134+C135 -> 220 | D136: =D134+D135 -> 4.27 | E136: =E134+E135 -> 0.59 | F136: 40.84 | G136: 185.7 | H136: 0.07 | I136: 0.04 | J136: 0 | K136: 0 | L136: 4 | M136: 149.94 | N136: 286.06 | O136: 21.92 | P136: 20.01 | Q136: 45.58 | R136: 3.56 | S136: 0 | T136: 0 | U136: 0
B137: Ужин
A138: 54-6г-2020 | B138: Горошница | C138: 150 | D138: 3.6 | E138: 4.8 | F138: 36.4 | G138: 203.5 | H138: 0.03 | I138: 0.02 | J138: 18.36 | K138: 0.09 | L138: 0 | M138: 152.8 | N138: 46.55 | O138: 106.65 | P138: 23.59 | Q138: 72.57 | R138: 0.49 | S138: 20.76 | T138: 7.24 | U138: 27.19
A139: ном.рец №174 | B139: Тефтели мясные из говядины, полуфабрикат в соусе | C139: 75/30 | D139: 10.81 | E139: 10.4 | F139: 8.42 | G139: 168.9 | H139: 0 | I139: 0 | J139: 38.45 | K139: 0.01 | L139: 1.79 | M139: 3 | N139: 43 | O139: 45.75 | P139: 35.13 | Q139: 109 | R139: 1.6 | S139: 0 | T139: 0 | U139: 0
A140: 54-1гн-2020 | B140: Чай без сахара | C140: 200 | D140: 0.2 | E140: 0 | F140: 0.1 | G140: 1.4 | H140: 0 | I140: 0.01 | J140: 0.3 | K140: 0 | L140: 0.04 | M140: 0.62 | N140: 20.58 | O140: 65.96 | P140: 3.83 | Q140: 7.18 | R140: 0.71 | S140: 0 | T140: 0 | U140: 0
A141: Пром. | B141: Хлеб пшеничный | C141: 30 | D141: 2.3 | E141: 0.2 | F141: 14.8 | G141: 70.3 | H141: 0.03 | I141: 0.01 | J141: 0 | K141: 0 | L141: 0 | M141: 149.7 | N141: 27.9 | O141: 6 | P141: 4.2 | Q141: 19.5 | R141: 0.33 | S141: 0.96 | T141: 1.8 | U141: 4.35
A142: Пром. | B142: Фрукт (апельсин, банан, яблоко) | C142: 100 | D142: 1.57 | E142: 0.35 | F142: 14.17 | G142: 66.1 | H142: 0.05 | I142: 0.04 | J142: 8.4 | K142: 0 | L142: 42 | M142: 17 | N142: 286 | O142: 52 | P142: 20 | Q142: 35 | R142: 0.5 | S142: 3.5 | T142: 0.8 | U142: 29.75
B143: Итого за Ужин | C143: 585 | D143: =SUM(D138:D142) -> 18.48 | E143: =SUM(E138:E142) -> 15.75 | F143: 73.89 | G143: 510.2 | H143: 0.11 | I143: 0.08 | J143: 65.51 | K143: 0.1 | L143: 43.83 | M143: 323.12 | N143: 424.03 | O143: 276.36 | P143: 86.75 | Q143: 243.25 | R143: 3.63 | S143: 25.22 | T143: 9.84 | U143: 61.29
B144: Ужин 2
A145: Пром. | B145: Кефир 3.2% | C145: 200 | D145: 5.8 | E145: 5 | F145: 8 | G145: 100.2 | H145: 0.06 | I145: 0.27 | J145: 26.4 | K145: 0 | L145: 1 | M145: 76 | N145: 242 | O145: 211 | P145: 24 | Q145: 157 | R145: 0.2 | S145: 18 | T145: 3.5 | U145: 40
B146: Итого за ужин 2 | C146: =C145 -> 200 | D146: =D145 -> 5.8 | E146: 5 | F146: 8 | G146: 100.2 | H146: 0.06 | I146: 0.27 | J146: 26.4 | K146: 0 | L146: 1 | M146: 76 | N146: 242 | O146: 211 | P146: 24 | Q146: 157 | R146: 0.2 | S146: 18 | T146: 3.5 | U146: 40
B147: Итого за день | C147: =C123+C132+C136+C143+C146 -> 2155 | D147: =D123+D132+D136+D143+D146 -> 60.37 | E147: 54.35 | F147: 251.57 | G147: 1761.75 | H147: 0.62 | I147: 0.78 | J147: 521.09 | K147: 0.47 | L147: 80.97 | M147: 1582.51 | N147: 2256.31 | O147: 909.45 | P147: 258.94 | Q147: 1016.88 | R147: 15.96 | S147: 130.59 | T147: 50.93 | U147: 199.64
A149: 5 день, 1 неделя
A150: № рецептуры | B150: Прием пищи, наименование блюда | C150: Масса | D150: Пищевые вещества | G150: Энергетическая ценность | H150: Витамины | M150: Минеральные вещества
D151: Белки | E151: Жиры | F151: Углеводы | H151: B1 | I151: B2 | J151: A | K151: D | L151: C | M151: Na | N151: K | O151: Ca | P151: Mg | Q151: P | R151: Fe | S151: I | T151: Se | U151: F
C152: г | D152: г | E152: г | F152: г | G152: ккал | H152: мг | I152: мг | J152: мкг рет.экв | K152: мкг | L152: мг | M152: мг | N152: мг | O152: мг | P152: мг | Q152: мг | R152: мг | S152: мкг | T152: мкг | U152: мкг
B153: Завтрак
A154: 53-19з-2020 | B154: Масло сливочное (порциями) | C154: 10 | D154: 0.08 | E154: 7.25 | F154: 0.13 | G154: 66.1 | H154: 0 | I154: 0.01 | J154: 27 | K154: 0.13 | L154: 0 | M154: 1.14 | N154: 2.49 | O154: 2.11 | P154: 0 | Q154: 2.61 | R154: 0.02 | S154: 0 | T154: 0.1 | U154: 0.3
A155: 54-16к-2020 | B155: Каша "Дружба" | C155: 160 | D155: 3.99 | E155: 4.72 | F155: 19.2 | G155: 135.1 | H155: 0.06 | I155: 0.1 | J155: 21.73 | K155: 0.05 | L155: 0 | M155: 268 | N155: 125 | O155: 110 | P155: 21 | Q155: 100 | R155: 0.4 | S155: 39.91 | T155: 3.2 | U155: 24.89
A156: 54-21гн-2020 | B156: Какао с молоком | C156: 200 | D156: 4.7 | E156: 3.5 | F156: 12.5 | G156: 100.4 | H156: 0.04 | I156: 0.16 | J156: 17.25 | K156: 0 | L156: 0.68 | M156: 49.95 | N156: 220.33 | O156: 167.68 | P156: 34.32 | Q156: 130.28 | R156: 1.09 | S156: 11.7 | T156: 2.29 | U156: 38.25
A157: Пром. | B157: Хлеб пшеничный | C157: 30 | D157: 2.3 | E157: 0.2 | F157: 14.8 | G157: 70.3 | H157: 0.03 | I157: 0.01 | J157: 0 | K157: 0 | L157: 0 | M157: 149.7 | N157: 27.9 | O157: 6 | P157: 4.2 | Q157: 19.5 | R157: 0.33 | S157: 0.96 | T157: 1.8 | U157: 4.35
B158: Итого за Завтрак | C158: =C154+C155+C156+C157 -> 400 | D158: =D154+D155+D156+D157 -> 11.07 | E158: 15.67 | F158: 46.63 | G158: 371.9 | H158: 0.13 | I158: 0.28 | J158: 65.98 | K158: 0.18 | L158: 0.68 | M158: 468.79 | N158: 375.72 | O158: 285.79 | P158: 59.52 | Q158: 252.39 | R158: 1.84 | S158: 52.57 | T158: 7.39 | U158: 67.79
B159: Обед
A160: 54-11з-2020 | B160: Салат из моркови с яблоками с растительным маслом | C160: 60 | D160: 0.5 | E160: 6.1 | F160: 4.3 | G160: 74.3 | H160: 0.03 | I160: 0.03 | J160: 732.9 | K160: 0 | L160: 3.63 | M160: 89.79 | N160: 123.26 | O160: 13.5 | P160: 15.57 | Q160: 22.38 | R160: 0.66 | S160: 10.19 | T160: 0.09 | U160: 21.57
A161: 54-8с-2020 | B161: Суп гороховый | C161: 200 | D161: 6.7 | E161: 4.6 | F161: 16.3 | G161: 133.1 | H161: 0.14 | I161: 0.05 | J161: 97.19 | K161: 0 | L161: 4.77 | M161: 95.82 | N161: 382.43 | O161: 26.94 | P161: 29 | Q161: 80.47 | R161: 1.48 | S161: 15.96 | T161: 2.01 | U161: 28.88
A162: 54-12м-2020 | B162: Плов с куринными грудками | C162: 150/50 | D162: 11.7 | E162: 8.98 | F162: 26.01 | G162: 233.2 | H162: 0.07 | I162: 0.06 | J162: 144.87 | K162: 0 | L162: 2.08 | M162: 272.9 | N162: 287.76 | O162: 72.64 | P162: 78.85 | Q162: 174.89 | R162: 1.53 | S162: 37.41 | T162: 19.63 | U162: 118.1
A163: 54-2хн-2020 | B163: Компот из кураги | C163: 200 | D163: 1 | E163: 0.1 | F163: 15.6 | G163: 66.9 | H163: 0.01 | I163: 0.03 | J163: 69.96 | K163: 0 | L163: 0.32 | M163: 2.64 | N163: 285.2 | O163: 90.5 | P163: 18.27 | Q163: 25.4 | R163: 0.58 | S163: 0 | T163: 0 | U163: 0
A164: Пром. | B164: Хлеб пшеничный | C164: 20 | D164: 1.52 | E164: 0.16 | F164: 9.84 | G164: 46.9 | H164: 0.02 | I164: 0.01 | J164: 0 | K164: 0 | L164: 0 | M164: 100 | N164: 19 | O164: 4 | P164: 3 | Q164: 13 | R164: 0.2 | S164: 0.64 | T164: 1.2 | U164: 2.9
A165: Пром. | B165: Хлеб ржаной | C165: 20 | D165: 1.3 | E165: 0.2 | F165: 6.7 | G165: 34.2 | H165: 0.04 | I165: 0.02 | J165: 0 | K165: 0 | L165: 0 | M165: 122 | N165: 49 | O165: 7 | P165: 9.4 | Q165: 31.6 | R165: 0.78 | S165: 0 | T165: 6.18 | U165: 0
A166: 54-10в-2020 | B166: Булочка ванильная | C166: 60 | D166: 4.7 | E166: 4 | F166: 30.5 | G166: 176.9 | H166: 0.06 | I166: 0.03 | J166: 19.12 | K166: 0.14 | L166: 0 | M166: 240.68 | N166: 50.54 | O166: 17.63 | P166: 6.52 | Q166: 40.93 | R166: 0.57 | S166: 33.36 | T166: 3.15 | U166: 11.03
B167: Итого за Обед | C167: 760 | D167: =SUM(D160:D166) -> 27.42 | E167: =SUM(E160:E166) -> 24.14 | F167: 109.25 | G167: 765.5 | H167: 0.37 | I167: 0.23 | J167: 1064.04 | K167: 0.14 | L167: 10.8 | M167: 923.83 | N167: 1197.19 | O167: 232.21 | P167: 160.61 | Q167: 388.67 | R167: 5.8 | S167: 97.56 | T167: 32.26 | U167: 182.48
B168: Полдник
A169: Пром. | B169: Сок персиковый | C169: 200 | D169: 0.6 | E169: 0 | F169: 33 | G169: 134.4 | H169: 0.03 | I169: 0.06 | J169: 60 | K169: 0 | L169: 5 | M169: 9 | N169: 252 | O169: 9 | P169: 21 | Q169: 26 | R169: 0.3 | S169: 0 | T169: 0 | U169: 0
A170: Пром. | B170: Пряник | C170: 30 | D170: 1.8 | E170: 1.4 | F170: 22.5 | G170: 109.8 | H170: 0.02 | I170: 0.01 | J170: 0 | K170: 0 | L170: 0 | M170: 0.6 | N170: 21.3 | O170: 3.3 | P170: 2.7 | Q170: 15 | R170: 0.24 | S170: 0 | T170: 0 | U170: 0
B171: Итого за Полдник | C171: =C169+C170 -> 230 | D171: =D169+D170 -> 2.4 | E171: 1.4 | F171: 55.5 | G171: 244.2 | H171: 0.05 | I171: 0.07 | J171: 60 | K171: 0 | L171: 5 | M171: 9.6 | N171: 273.3 | O171: 12.3 | P171: 23.7 | Q171: 41 | R171: 0.54 | S171: 0 | T171: 0 | U171: 0
B172: Ужин
A173: Рец. По сборнику | B173: Пельмени мясные отварные П/Ф | C173: 200 | D173: 10.34 | E173: 12.175 | F173: 20.34 | G173: 237 | H173: 0.159 | I173: 0 | J173: 0.18 | K173: 0 | L173: 0.491 | M173: 0 | N173: 0 | O173: 79.453 | P173: 10.579 | Q173: 239.018 | R173: 0.01 | S173: 0 | T173: 0 | U173: 0
A174: 54-2гн-2020 | B174: Чай-заварка | C174: 200 | D174: 0.2 | E174: 0 | F174: 6.4 | G174: 26.8 | H174: 0 | I174: 0.01 | J174: 0.3 | K174: 0 | L174: 0.04 | M174: 0.68 | N174: 20.76 | O174: 66.08 | P174: 3.83 | Q174: 7.18 | R174: 0.73 | S174: 0 | T174: 0 | U174: 0
A175: Пром. | B175: Хлеб пшеничный | C175: 30 | D175: 2.3 | E175: 0.2 | F175: 14.8 | G175: 70.3 | H175: 0.03 | I175: 0.01 | J175: 0 | K175: 0 | L175: 0 | M175: 149.7 | N175: 27.9 | O175: 6 | P175: 4.2 | Q175: 19.5 | R175: 0.33 | S175: 0.96 | T175: 1.8 | U175: 4.35
A176: Пром. | B176: Хлеб ржаной | C176: 20 | D176: 1.3 | E176: 0.2 | F176: 6.7 | G176: 34.2 | H176: 0.04 | I176: 0.02 | J176: 0 | K176: 0 | L176: 0 | M176: 122 | N176: 49 | O176: 7 | P176: 9.4 | Q176: 31.6 | R176: 0.78 | S176: 0 | T176: 6.18 | U176: 0
B177: Итого за Ужин | C177: =C173+C174+C175+C176 -> 450 | D177: =D173+D174+D175+D176 -> 14.14 | E177: 12.575 | F177: 48.24 | G177: 368.3 | H177: 0.229 | I177: 0.04 | J177: 0.48 | K177: 0 | L177: 0.531 | M177: 272.38 | N177: 97.66 | O177: 158.533 | P177: 28.009 | Q177: 297.298 | R177: 1.85 | S177: 0.96 | T177: 7.98 | U177: 4.35
B178: Ужин 2
A179: Пром. | B179: Ряженка 2.5% | C179: 200 | D179: 5.8 | E179: 5 | F179: 8.4 | G179: 101.8 | H179: 0.03 | I179: 0.21 | J179: 26.4 | K179: 0 | L179: 0 | M179: 76 | N179: 242 | O179: 218 | P179: 24 | Q179: 160 | R179: 0.2 | S179: 18 | T179: 1.8 | U179: 40
B180: Итого за ужин 2 | C180: =C179 -> 200 | D180: =D179 -> 5.8 | E180: 5 | F180: 8.4 | G180: 101.8 | H180: 0.03 | I180: 0.21 | J180: 26.4 | K180: 0 | L180: 0 | M180: 76 | N180: 242 | O180: 218 | P180: 24 | Q180: 160 | R180: 0.2 | S180: 18 | T180: 1.8 | U180: 40
B181: Итого за день | C181: =C158+C167+C171+C177+C180 -> 2040 | D181: 60.83 | E181: 58.785 | F181: 268.02 | G181: 1851.7 | H181: 0.809 | I181: 0.83 | J181: 1216.9 | K181: 0.32 | L181: 17.011 | M181: 1750.6 | N181: 2185.87 | O181: 906.833 | P181: 295.839 | Q181: 1139.358 | R181: 10.23 | S181: 169.09 | T181: 49.43 | U181: 294.62
A183: 7 день, 2 неделя
A184: № рецептуры | B184: Прием пищи, наименование блюда | C184: Масса | D184: Пищевые вещества | G184: Энергетическая ценность | H184: Витамины | M184: Минеральные вещества
D185: Белки | E185: Жиры | F185: Углеводы | H185: B1 | I185: B2 | J185: A | K185: D | L185: C | M185: Na | N185: K | O185: Ca | P185: Mg | Q185: P | R185: Fe | S185: I | T185: Se | U185: F
C186: г | D186: г | E186: г | F186: г | G186: ккал | H186: мг | I186: мг | J186: мкг рет.экв | K186: мкг | L186: мг | M186: мг | N186: мг | O186: мг | P186: мг | Q186: мг | R186: мг | S186: мкг | T186: мкг | U186: мкг
B187: Завтрак
A188: 53-19з-2020 | B188: Масло сливочное (порциями) | C188: 10 | D188: 0.08 | E188: 7.25 | F188: 0.13 | G188: 66.1 | H188: 0 | I188: 0.01 | J188: 27 | K188: 0.13 | L188: 0 | M188: 1.14 | N188: 2.49 | O188: 2.11 | P188: 0 | Q188: 2.61 | R188: 0.02 | S188: 0 | T188: 0.1 | U188: 0.3
A189: 54-22к-2020 | B189: Каша жидкая молочная овсяная | C189: 150 | D189: 5.1 | E189: 5.6 | F189: 18.5 | G189: 144.5 | H189: 0.11 | I189: 0.13 | J189: 21.81 | K189: 0.05 | L189: 0.46 | M189: 260.87 | N189: 177.7 | O189: 123.12 | P189: 34.24 | Q189: 140.9 | R189: 0.89 | S189: 39 | T189: 7.47 | U189: 37.21
A190: 54-4гн-2020 | B190: Чай с молоком и сахаром | C190: 200 | D190: 1.6 | E190: 1.1 | F190: 8.6 | G190: 50.9 | H190: 0.01 | I190: 0.07 | J190: 6.9 | K190: 0 | L190: 0.3 | M190: 19.68 | N190: 81.35 | O190: 103.48 | P190: 9.92 | Q190: 46.33 | R190: 0.78 | S190: 4.5 | T190: 0.88 | U190: 10
A191: Пром. | B191: Хлеб пшеничный | C191: 30 | D191: 2.3 | E191: 0.2 | F191: 14.8 | G191: 70.3 | H191: 0.03 | I191: 0.01 | J191: 0 | K191: 0 | L191: 0 | M191: 149.7 | N191: 27.9 | O191: 6 | P191: 4.2 | Q191: 19.5 | R191: 0.33 | S191: 0.96 | T191: 1.8 | U191: 4.35
B192: Итого за Завтрак | C192: =C188+C189+C190+C191 -> 390 | D192: =D188+D189+D190+D191 -> 9.08 | E192: 14.15 | F192: 42.03 | G192: 331.8 | H192: 0.15 | I192: 0.22 | J192: 55.71 | K192: 0.18 | L192: 0.76 | M192: 431.39 | N192: 289.44 | O192: 234.71 | P192: 48.36 | Q192: 209.34 | R192: 2.02 | S192: 44.46 | T192: 10.25 | U192: 51.86
B193: Обед
A194: №Т/К 41 | B194: Салат из моркови с сахаром и растительным маслом | C194: 60 | D194: 0.5 | E194: 6.1 | F194: 4.3 | G194: 74.3 | H194: 0.03 | I194: 0.03 | J194: 732.9 | K194: 0 | L194: 3.63 | M194: 89.79 | N194: 123.26 | O194: 13.5 | P194: 15.57 | Q194: 22.38 | R194: 0.66 | S194: 10.19 | T194: 0.09 | U194: 21.57
A195: 62 | B195: Борщ | C195: 200 | D195: 10.77 | E195: 6.46 | F195: 19.1 | G195: 166 | H195: 0.1 | I195: 0 | J195: 0.2 | K195: 0 | L195: 10.7 | M195: 0 | N195: 0 | O195: 43.5 | P195: 26.9 | Q195: 57.4 | R195: 1.4 | S195: 0 | T195: 0 | U195: 0
A196: 54-4г-2020 | B196: Каша гречневая рассыпчатая | C196: 150 | D196: 8.2 | E196: 6.3 | F196: 35.9 | G196: 233.7 | H196: 0.21 | I196: 0.12 | J196: 19.19 | K196: 0.09 | L196: 0 | M196: 149.45 | N196: 219.36 | O196: 46.62 | P196: 120.16 | Q196: 180.99 | R196: 4.05 | S196: 22.28 | T196: 3.52 | U196: 16.06
A197: №243 | B197: Сосиски говяжьи отварные, п/ф (2 шт) | C197: 100 | D197: 13.2 | E197: 22.84 | F197: 1.8 | G197: 202.15 | H197: 0 | I197: 0 | J197: 0.08 | K197: 0.01 | L197: 0 | M197: 0 | N197: 0 | O197: 7.44 | P197: 15.51 | Q197: 137.39 | R197: 1.74 | S197: 0 | T197: 0 | U197: 0
A198: Т/к №430 | B198: Чай с сахаром и яблоком | C198: 200 | D198: 0.2 | E198: 0 | F198: 8.2 | G198: 34.1 | H198: 0 | I198: 0 | J198: 0 | K198: 0 | L198: 0.4 | M198: 0 | N198: 0 | O198: 14.1 | P198: 6.5 | Q198: 8.4 | R198: 0.9 | S198: 0 | T198: 0 | U198: 0
A199: № Т/К 399 | B199: Блины фаршированные (клубника, вишня, сгущенное молоко) 2 шт | C199: 140 | D199: 5.6 | E199: 6.7 | F199: 37.8 | G199: 245 | H199: 0.16 | I199: 0 | J199: 0 | K199: 0 | L199: 0 | M199: 0 | N199: 0 | O199: 196.9 | P199: 38.48 | Q199: 85 | R199: 0.96 | S199: 0 | T199: 0 | U199: 0
A200: Пром. | B200: Хлеб ржаной | C200: 20 | D200: 1.3 | E200: 0.2 | F200: 6.7 | G200: 34.2 | H200: 0.04 | I200: 0.02 | J200: 0 | K200: 0 | L200: 0 | M200: 122 | N200: 49 | O200: 7 | P200: 9.4 | Q200: 31.6 | R200: 0.78 | S200: 0 | T200: 6.18 | U200: 0
B201: Итого за Обед | C201: =C194+C195+C196+C197+C198+C199+C200 -> 870 | D201: =D194+D195+D196+D197+D198+D199+D200 -> 39.77 | E201: =E194+E195+E196+E197+E198+E199+E200 -> 48.6 | F201: 113.8 | G201: 989.45 | H201: 0.54 | I201: 0.17 | J201: 752.37 | K201: 0.1 | L201: 14.73 | M201: 361.24 | N201: 391.62 | O201: 329.06 | P201: 232.52 | Q201: 523.16 | R201: 10.49 | S201: 32.47 | T201: 9.79 | U201: 37.63
B202: Полдник
A203: Пром. | B203: Сок яблочный | C203: 200 | D203: 1 | E203: 0.2 | F203: 20.2 | G203: 86.6 | H203: 0.02 | I203: 0.02 | J203: 0 | K203: 0 | L203: 4 | M203: 12 | N203: 240 | O203: 14 | P203: 8 | Q203: 14 | R203: 2.8 | S203: 0 | T203: 0 | U203: 0
A204: Пром. | B204: Сушка простая | C204: 20 | D204: 3.27 | E204: 0.39 | F204: 20.64 | G204: 99.1 | H204: 0.05 | I204: 0.02 | J204: 0 | K204: 0 | L204: 0 | M204: 137.94 | N204: 46.06 | O204: 7.92 | P204: 12.01 | Q204: 31.58 | R204: 0.76 | S204: 0 | T204: 0 | U204: 0
B205: Итого за Полдник | C205: =C203+C204 -> 220 | D205: =D203+D204 -> 4.27 | E205: 0.59 | F205: 40.84 | G205: 185.7 | H205: 0.07 | I205: 0.04 | J205: 0 | K205: 0 | L205: 4 | M205: 149.94 | N205: 286.06 | O205: 21.92 | P205: 20.01 | Q205: 45.58 | R205: 3.56 | S205: 0 | T205: 0 | U205: 0
B206: Ужин
A207: 54-6г-2020 | B207: Рис отварной | C207: 150 | D207: 5.3 | E207: 4.9 | F207: 32.8 | G207: 196.8 | H207: 0.06 | I207: 0.02 | J207: 18.36 | K207: 0.09 | L207: 0 | M207: 149.04 | N207: 53.8 | O207: 105.83 | P207: 7.19 | Q207: 40.7 | R207: 0.73 | S207: 20.77 | T207: 0.06 | U207: 11.92
... 154 more rows
